[Event "Titled Tuesday Blitz May 16 Early 2023"]
[White "Vakhlamov, Igor L."]
[Black "Bilan, Danila"]
[WhiteFideId "24126748"]
[BlackFideId "24161918"]
[WhiteElo "2407"]
[BlackElo "2182"]
[Result "0-1"]
[Round "03"]
[TimeControl "180+2"]
[Date "2023.05.16"]
[WhiteClock "0:01:25"]
[BlackClock "0:00:05"]

1. e4 {[%clk 0:02:59]}  c6 {[%clk 0:02:59]} 2. d4 {[%clk 0:02:59]}  d5 {[%clk 0:03:00]} 3. exd5 {[%clk 0:03:00]}  cxd5 {[%clk 0:03:00]} 4. c4 {[%clk 0:03:01]}  Nf6 {[%clk 0:03:00]} 5. Nc3 {[%clk 0:03:01]}  Nc6 {[%clk 0:03:01]} 6. Nf3 {[%clk 0:03:02]}  Bg4 {[%clk 0:03:02]} 7. cxd5 {[%clk 0:03:02]}  Nxd5 {[%clk 0:03:01]} 8. h3 {[%clk 0:03:03]}  Bxf3 {[%clk 0:03:02]} 9. Qxf3 {[%clk 0:03:03]}  e6 {[%clk 0:03:01]} 10. Bb5 {[%clk 0:03:04]}  Rc8 {[%clk 0:02:58]} 11. O-O {[%clk 0:03:04]}  Be7 {[%clk 0:02:58]} 12. Nxd5 {[%clk 0:03:04]}  Qxd5 {[%clk 0:02:54]} 13. Qxd5 {[%clk 0:03:04]}  exd5 {[%clk 0:02:55]} 14. Be3 {[%clk 0:03:05]}  a6 {[%clk 0:02:45]} 15. Ba4 {[%clk 0:02:56]}  O-O {[%clk 0:02:30]} 16. Rac1 {[%clk 0:02:54]}  Bf6 {[%clk 0:02:18]} 17. Rfd1 {[%clk 0:02:54]}  Rfd8 {[%clk 0:02:13]} 18. Kf1 {[%clk 0:02:53]}  Na5 {[%clk 0:01:58]} 19. Bc2 {[%clk 0:02:35]}  g6 {[%clk 0:01:29]} 20. b3 {[%clk 0:02:15]}  Be7 {[%clk 0:01:13]} 21. Bd3 {[%clk 0:02:13]}  Ba3 {[%clk 0:01:12]} 22. Rxc8 {[%clk 0:02:13]}  Rxc8 {[%clk 0:01:13]} 23. Be2 {[%clk 0:02:14]}  Nc6 {[%clk 0:01:06]} 24. Bf3 {[%clk 0:02:14]}  Nb4 {[%clk 0:01:05]} 25. Bd2 {[%clk 0:02:07]}  Nxa2 {[%clk 0:00:30]} 26. Bxd5 {[%clk 0:02:07]}  Rd8 {[%clk 0:00:30]} 27. Bxb7 {[%clk 0:02:07]}  Rxd4 {[%clk 0:00:30]} 28. Ke2 {[%clk 0:01:57]}  Bb4 {[%clk 0:00:16]} 29. Bxa6 {[%clk 0:01:38]}  Bxd2 {[%clk 0:00:08]} 30. Rxd2 {[%clk 0:01:39]}  Nc1+ {[%clk 0:00:08]} 31. Ke3 {[%clk 0:01:35]}  Rxd2 {[%clk 0:00:07]} 32. Kxd2 {[%clk 0:01:36]}  Nxb3+ {[%clk 0:00:08]} 33. Ke3 {[%clk 0:01:36]}  Nc5 {[%clk 0:00:09]} 34. Bc4 {[%clk 0:01:37]}  Kg7 {[%clk 0:00:09]} 35. Kd4 {[%clk 0:01:38]}  Nd7 {[%clk 0:00:09]} 36. g4 {[%clk 0:01:37]}  g5 {[%clk 0:00:08]} 37. Bb3 {[%clk 0:01:37]}  Kf6 {[%clk 0:00:08]} 38. Kd5 {[%clk 0:01:35]}  Ne5 {[%clk 0:00:08]} 39. Bc2 {[%clk 0:01:34]}  h6 {[%clk 0:00:06]} 40. Be4 {[%clk 0:01:35]}  Nd7 {[%clk 0:00:05]} 41. Bd3 {[%clk 0:01:31]}  Ne5 {[%clk 0:00:05]} 42. Be2 {[%clk 0:01:32]}  Ng6 {[%clk 0:00:05]} 43. Bf1 {[%clk 0:01:31]}  Nf4+ {[%clk 0:00:05]} 44. Ke4 {[%clk 0:01:32]}  Ne6 {[%clk 0:00:04]} 45. Bc4 {[%clk 0:01:31]}  Nf4 {[%clk 0:00:04]} 46. h4 {[%clk 0:01:31]}  Ng6 {[%clk 0:00:02]} 47. h5 {[%clk 0:01:29]}  Ne5 {[%clk 0:00:02]} 48. Be2 {[%clk 0:01:30]}  Nd7 {[%clk 0:00:03]} 49. Bd1 {[%clk 0:01:29]}  Ne5 {[%clk 0:00:03]} 50. f3 {[%clk 0:01:29]}  Nd7 {[%clk 0:00:03]} 51. Bb3 {[%clk 0:01:29]}  Nc5+ {[%clk 0:00:03]} 52. Kd5 {[%clk 0:01:28]}  Nxb3 {[%clk 0:00:04]} 53. Kc4 {[%clk 0:01:28]}  Nd2+ {[%clk 0:00:05]} 54. Kd3 {[%clk 0:01:25]}  Nxf3 {[%clk 0:00:05]} 0-1


[Site "https://www.chess.com"]

[Event "Titled Tuesday Blitz May 16 Early 2023"]
[White "Yelisieiev, Yevhenii"]
[Black "Harshavardhan G B"]
[WhiteFideId "14139642"]
[BlackFideId "25059009"]
[WhiteElo "2403"]
[BlackElo "2323"]
[Result "1/2-1/2"]
[Round "03"]
[TimeControl "180+2"]
[Date "2023.05.16"]
[WhiteClock "0:00:03"]
[BlackClock "0:00:08"]

1. d4 {[%clk 0:03:00]}  Nf6 {[%clk 0:02:58]} 2. Nf3 {[%clk 0:03:01]}  e6 {[%clk 0:02:54]} 3. c4 {[%clk 0:03:00]}  b6 {[%clk 0:02:52]} 4. Nc3 {[%clk 0:02:53]}  Bb7 {[%clk 0:02:50]} 5. a3 {[%clk 0:02:45]}  d5 {[%clk 0:02:50]} 6. Bg5 {[%clk 0:02:37]}  Be7 {[%clk 0:02:49]} 7. e3 {[%clk 0:02:33]}  O-O {[%clk 0:02:48]} 8. cxd5 {[%clk 0:02:32]}  Nxd5 {[%clk 0:02:47]} 9. Bxe7 {[%clk 0:02:30]}  Qxe7 {[%clk 0:02:46]} 10. Bd3 {[%clk 0:02:29]}  Nd7 {[%clk 0:02:46]} 11. Rc1 {[%clk 0:02:26]}  c5 {[%clk 0:02:45]} 12. O-O {[%clk 0:02:25]}  Rfd8 {[%clk 0:02:42]} 13. Qe2 {[%clk 0:02:17]}  cxd4 {[%clk 0:02:38]} 14. Nxd4 {[%clk 0:02:17]}  Nc5 {[%clk 0:02:37]} 15. Bb5 {[%clk 0:02:09]}  Rac8 {[%clk 0:02:30]} 16. b4 {[%clk 0:01:48]}  Nxc3 {[%clk 0:02:22]} 17. Rxc3 {[%clk 0:01:48]}  Ne4 {[%clk 0:02:18]} 18. Rxc8 {[%clk 0:01:42]}  Rxc8 {[%clk 0:02:19]} 19. Ba6 {[%clk 0:01:37]}  h6 {[%clk 0:02:09]} 20. Bxb7 {[%clk 0:01:30]}  Qxb7 {[%clk 0:02:10]} 21. f3 {[%clk 0:01:22]}  Nd6 {[%clk 0:02:06]} 22. Rd1 {[%clk 0:01:14]}  Nc4 {[%clk 0:02:06]} 23. Nb5 {[%clk 0:01:00]}  a6 {[%clk 0:01:52]} 24. Nd6 {[%clk 0:00:58]}  Nxd6 {[%clk 0:01:52]} 25. Rxd6 {[%clk 0:00:58]}  Qc7 {[%clk 0:01:42]} 26. Qd2 {[%clk 0:00:54]}  a5 {[%clk 0:01:38]} 27. b5 {[%clk 0:00:52]}  a4 {[%clk 0:01:26]} 28. Rc6 {[%clk 0:00:51]}  Qb8 {[%clk 0:01:23]} 29. Qd4 {[%clk 0:00:37]}  Rd8 {[%clk 0:01:17]} 30. Rxb6 {[%clk 0:00:21]}  Qc7 {[%clk 0:01:16]} 31. Rc6 {[%clk 0:00:20]}  Qb8 {[%clk 0:01:13]} 32. Rb6 {[%clk 0:00:14]}  Qc7 {[%clk 0:01:09]} 33. Rc6 {[%clk 0:00:14]}  Qe7 {[%clk 0:01:08]} 34. Qa1 {[%clk 0:00:07]}  Qg5 {[%clk 0:01:04]} 35. Qc1 {[%clk 0:00:05]}  Qxb5 {[%clk 0:01:03]} 36. Rc8 {[%clk 0:00:05]}  Rxc8 {[%clk 0:01:01]} 37. Qxc8+ {[%clk 0:00:06]}  Kh7 {[%clk 0:01:02]} 38. Qc2+ {[%clk 0:00:06]}  g6 {[%clk 0:00:58]} 39. Kf2 {[%clk 0:00:07]}  Qb3 {[%clk 0:00:57]} 40. Qc5 {[%clk 0:00:07]}  Qb2+ {[%clk 0:00:56]} 41. Kg3 {[%clk 0:00:07]}  h5 {[%clk 0:00:56]} 42. h4 {[%clk 0:00:07]}  Qb3 {[%clk 0:00:55]} 43. e4 {[%clk 0:00:07]}  Qd1 {[%clk 0:00:53]} 44. Qe7 {[%clk 0:00:07]}  Kg7 {[%clk 0:00:51]} 45. Qb4 {[%clk 0:00:07]}  e5 {[%clk 0:00:46]} 46. Qc3 {[%clk 0:00:07]}  Qd6 {[%clk 0:00:42]} 47. f4 {[%clk 0:00:06]}  f6 {[%clk 0:00:39]} 48. fxe5 {[%clk 0:00:06]}  fxe5 {[%clk 0:00:32]} 49. Kh2 {[%clk 0:00:06]}  Qd4 {[%clk 0:00:20]} 50. Qc7+ {[%clk 0:00:05]}  Kh6 {[%clk 0:00:20]} 51. Qf7 {[%clk 0:00:02]}  Qc5 {[%clk 0:00:17]} 52. Qf6 {[%clk 0:00:02]}  Kh7 {[%clk 0:00:13]} 53. Qf7+ {[%clk 0:00:02]}  Kh6 {[%clk 0:00:14]} 54. Qf6 {[%clk 0:00:03]}  Qc8 {[%clk 0:00:12]} 55. Qg5+ {[%clk 0:00:02]}  Kh7 {[%clk 0:00:12]} 56. Qxe5 {[%clk 0:00:03]}  Qg4 {[%clk 0:00:11]} 57. Qe7+ {[%clk 0:00:03]}  Kg8 {[%clk 0:00:12]} 58. Qe8+ {[%clk 0:00:03]}  Kg7 {[%clk 0:00:12]} 59. Qe7+ {[%clk 0:00:04]}  Kg8 {[%clk 0:00:12]} 60. Qe8+ {[%clk 0:00:04]}  Kg7 {[%clk 0:00:13]} 61. Qe5+ {[%clk 0:00:04]}  Kg8 {[%clk 0:00:10]} 62. Qb8+ {[%clk 0:00:04]}  Kh7 {[%clk 0:00:10]} 63. Qa7+ {[%clk 0:00:04]}  Kg8 {[%clk 0:00:09]} 64. Qb8+ {[%clk 0:00:03]}  Kh7 {[%clk 0:00:09]} 65. Qa7+ {[%clk 0:00:04]}  Kg8 {[%clk 0:00:09]} 66. Qa8+ {[%clk 0:00:04]}  Kg7 {[%clk 0:00:09]} 67. Qa7+ {[%clk 0:00:03]}  Kh8 {[%clk 0:00:08]} 68. Qa8+ {[%clk 0:00:03]}  Kh7 {[%clk 0:00:08]} 69. Qa7+ {[%clk 0:00:03]} 1/2-1/2


[Site "https://www.chess.com"]

[Event "Titled Tuesday Blitz May 16 Early 2023"]
[White "Lavrik, Dmitry"]
[Black "Mostbauer, Florian"]
[WhiteFideId "24113190"]
[BlackFideId "1626671"]
[WhiteElo "2345"]
[BlackElo "2234"]
[Result "1/2-1/2"]
[Round "03"]
[TimeControl "180+2"]
[Date "2023.05.16"]
[WhiteClock "0:00:29"]
[BlackClock "0:00:35"]

1. c4 {[%clk 0:02:43]}  c6 {[%clk 0:03:00]} 2. Nf3 {[%clk 0:02:41]}  Nf6 {[%clk 0:02:59]} 3. g3 {[%clk 0:02:41]}  d5 {[%clk 0:02:59]} 4. Bg2 {[%clk 0:02:42]}  Bf5 {[%clk 0:03:00]} 5. Qb3 {[%clk 0:02:36]}  Qb6 {[%clk 0:02:59]} 6. d3 {[%clk 0:02:36]}  Nbd7 {[%clk 0:02:58]} 7. Be3 {[%clk 0:02:34]}  dxc4 {[%clk 0:02:58]} 8. dxc4 {[%clk 0:02:26]}  Qxb3 {[%clk 0:02:57]} 9. axb3 {[%clk 0:02:26]}  Bxb1 {[%clk 0:02:56]} 10. Rxb1 {[%clk 0:02:26]}  e6 {[%clk 0:02:57]} 11. Kd1 {[%clk 0:02:19]}  Bc5 {[%clk 0:02:54]} 12. Bxc5 {[%clk 0:02:18]}  Nxc5 {[%clk 0:02:54]} 13. Kc2 {[%clk 0:02:14]}  h6 {[%clk 0:02:51]} 14. b4 {[%clk 0:02:12]}  Nce4 {[%clk 0:02:50]} 15. Rhf1 {[%clk 0:02:11]}  Ke7 {[%clk 0:02:28]} 16. Ne5 {[%clk 0:01:53]}  Rhd8 {[%clk 0:02:24]} 17. Nd3 {[%clk 0:01:53]}  Rac8 {[%clk 0:02:07]} 18. f3 {[%clk 0:01:48]}  Nd6 {[%clk 0:02:05]} 19. b3 {[%clk 0:01:45]}  Nf5 {[%clk 0:02:04]} 20. Kc3 {[%clk 0:01:41]}  Ne3 {[%clk 0:01:59]} 21. Rg1 {[%clk 0:01:41]}  b5 {[%clk 0:01:53]} 22. Ra1 {[%clk 0:01:36]}  Rc7 {[%clk 0:01:51]} 23. Ra6 {[%clk 0:01:29]}  Nd7 {[%clk 0:01:27]} 24. Bh1 {[%clk 0:01:24]}  c5 {[%clk 0:00:58]} 25. bxc5 {[%clk 0:00:42]}  bxc4 {[%clk 0:00:54]} 26. bxc4 {[%clk 0:00:43]}  Nxc5 {[%clk 0:00:53]} 27. Nxc5 {[%clk 0:00:43]}  Rxc5 {[%clk 0:00:54]} 28. Rxa7+ {[%clk 0:00:43]}  Kf6 {[%clk 0:00:54]} 29. Ra4 {[%clk 0:00:42]}  Rdc8 {[%clk 0:00:38]} 30. f4 {[%clk 0:00:35]}  Rxc4+ {[%clk 0:00:37]} 31. Rxc4 {[%clk 0:00:34]}  Nxc4 {[%clk 0:00:36]} 32. Kd4 {[%clk 0:00:29]}  Nd6 {[%clk 0:00:35]} 1/2-1/2


[Site "https://www.chess.com"]

[Event "Titled Tuesday Blitz May 16 Early 2023"]
[White "SereneSalmon"]
[Black "carokannlover213"]
[WhiteElo "2498"]
[BlackElo "2699"]
[Result "0-1"]
[Round "03"]
[TimeControl "180+2"]
[Date "2023.05.16"]
[WhiteClock "0:00:03"]
[BlackClock "0:00:13"]

1. d4 {[%clk 0:03:00]}  Nf6 {[%clk 0:02:59]} 2. c4 {[%clk 0:03:01]}  e6 {[%clk 0:02:59]} 3. Nf3 {[%clk 0:03:01]}  d5 {[%clk 0:02:59]} 4. g3 {[%clk 0:03:02]}  Bb4+ {[%clk 0:02:56]} 5. Bd2 {[%clk 0:03:02]}  Be7 {[%clk 0:02:57]} 6. Bg2 {[%clk 0:03:02]}  O-O {[%clk 0:02:57]} 7. O-O {[%clk 0:03:03]}  c6 {[%clk 0:02:54]} 8. Qc2 {[%clk 0:03:03]}  Nbd7 {[%clk 0:02:55]} 9. Bf4 {[%clk 0:03:02]}  b6 {[%clk 0:02:55]} 10. Nbd2 {[%clk 0:03:02]}  Ba6 {[%clk 0:02:53]} 11. Rac1 {[%clk 0:02:52]}  Nh5 {[%clk 0:02:47]} 12. Rfd1 {[%clk 0:02:22]}  Nxf4 {[%clk 0:02:42]} 13. gxf4 {[%clk 0:02:23]}  Bb7 {[%clk 0:02:10]} 14. e3 {[%clk 0:02:19]}  Rc8 {[%clk 0:02:07]} 15. Qa4 {[%clk 0:02:12]}  dxc4 {[%clk 0:01:42]} 16. Qxc4 {[%clk 0:01:59]}  c5 {[%clk 0:01:34]} 17. dxc5 {[%clk 0:01:40]}  Bxc5 {[%clk 0:01:27]} 18. Qe2 {[%clk 0:01:36]}  Qe7 {[%clk 0:01:24]} 19. Nb3 {[%clk 0:01:33]}  a5 {[%clk 0:01:07]} 20. Nxc5 {[%clk 0:01:30]}  Nxc5 {[%clk 0:01:07]} 21. Nd4 {[%clk 0:01:28]}  Bxg2 {[%clk 0:00:56]} 22. Kxg2 {[%clk 0:01:29]}  e5 {[%clk 0:00:55]} 23. Nf5 {[%clk 0:01:01]}  Qf6 {[%clk 0:00:50]} 24. Qg4 {[%clk 0:00:55]}  exf4 {[%clk 0:00:32]} 25. Qxf4 {[%clk 0:00:47]}  Ne6 {[%clk 0:00:25]} 26. Qe4 {[%clk 0:00:28]}  Qg6+ {[%clk 0:00:25]} 27. Ng3 {[%clk 0:00:27]}  f5 {[%clk 0:00:16]} 28. Qe5 {[%clk 0:00:17]}  Rxc1 {[%clk 0:00:16]} 29. Rxc1 {[%clk 0:00:18]}  f4 {[%clk 0:00:17]} 30. exf4 {[%clk 0:00:13]}  Nxf4+ {[%clk 0:00:18]} 31. Kh1 {[%clk 0:00:11]}  Nd3 {[%clk 0:00:14]} 32. Qd5+ {[%clk 0:00:11]}  Kh8 {[%clk 0:00:15]} 33. Rc2 {[%clk 0:00:09]}  Nb4 {[%clk 0:00:13]} 34. Qe4 {[%clk 0:00:03]}  Qxe4+ {[%clk 0:00:12]} 35. Nxe4 {[%clk 0:00:03]}  Nxc2 {[%clk 0:00:13]} 0-1


[Site "https://www.chess.com"]

[Event "Titled Tuesday Blitz May 16 Early 2023"]
[White "caropawn10"]
[Black "Pinto, Daniel"]
[BlackFideId "3303144"]
[WhiteElo "2694"]
[BlackElo "2145"]
[Result "1-0"]
[Round "03"]
[TimeControl "180+2"]
[Date "2023.05.16"]
[WhiteClock "0:02:46"]
[BlackClock "0:01:24"]

1. c4 {[%clk 0:03:00]}  c5 {[%clk 0:02:57]} 2. Nc3 {[%clk 0:02:59]}  Nc6 {[%clk 0:02:56]} 3. g3 {[%clk 0:02:59]}  g6 {[%clk 0:02:56]} 4. Bg2 {[%clk 0:02:59]}  Bg7 {[%clk 0:02:57]} 5. e4 {[%clk 0:02:59]}  e5 {[%clk 0:02:57]} 6. Nge2 {[%clk 0:03:00]}  Nge7 {[%clk 0:02:58]} 7. O-O {[%clk 0:03:01]}  O-O {[%clk 0:02:59]} 8. d3 {[%clk 0:03:01]}  Rb8 {[%clk 0:02:56]} 9. h3 {[%clk 0:03:01]}  a6 {[%clk 0:02:56]} 10. a4 {[%clk 0:03:02]}  d6 {[%clk 0:02:55]} 11. Rb1 {[%clk 0:03:02]}  f5 {[%clk 0:02:46]} 12. f4 {[%clk 0:03:00]}  fxe4 {[%clk 0:02:37]} 13. Nxe4 {[%clk 0:02:58]}  Nf5 {[%clk 0:02:19]} 14. fxe5 {[%clk 0:02:50]}  Bxe5 {[%clk 0:02:17]} 15. g4 {[%clk 0:02:48]}  Nh4 {[%clk 0:01:24]} 16. Bg5 {[%clk 0:02:46]} 1-0


[Site "https://www.chess.com"]

[Event "Titled Tuesday Blitz May 16 Early 2023"]
[White "Prohaszka, Peter"]
[Black "Bethke, Richard"]
[WhiteFideId "726265"]
[BlackFideId "12959243"]
[WhiteElo "2626"]
[BlackElo "2369"]
[Result "0-1"]
[Round "03"]
[TimeControl "180+2"]
[Date "2023.05.16"]
[WhiteClock "0:00:00"]
[BlackClock "0:00:35"]

1. d4 {[%clk 0:03:00]}  Nf6 {[%clk 0:02:59]} 2. c3 {[%clk 0:03:00]}  d5 {[%clk 0:02:59]} 3. Nf3 {[%clk 0:03:01]}  c5 {[%clk 0:02:59]} 4. dxc5 {[%clk 0:03:01]}  Nc6 {[%clk 0:02:59]} 5. b4 {[%clk 0:02:45]}  e6 {[%clk 0:02:58]} 6. Bb2 {[%clk 0:02:33]}  a5 {[%clk 0:02:53]} 7. a3 {[%clk 0:02:33]}  b6 {[%clk 0:02:52]} 8. cxb6 {[%clk 0:01:51]}  Qxb6 {[%clk 0:02:53]} 9. e3 {[%clk 0:01:51]}  Ne4 {[%clk 0:02:49]} 10. Nbd2 {[%clk 0:01:37]}  Nd6 {[%clk 0:02:40]} 11. Be2 {[%clk 0:01:25]}  Be7 {[%clk 0:02:40]} 12. O-O {[%clk 0:01:24]}  O-O {[%clk 0:02:40]} 13. Nd4 {[%clk 0:01:18]}  Nxd4 {[%clk 0:02:35]} 14. exd4 {[%clk 0:01:16]}  Bd7 {[%clk 0:02:31]} 15. Qb1 {[%clk 0:01:06]}  Bb5 {[%clk 0:02:10]} 16. Bd3 {[%clk 0:01:03]}  g6 {[%clk 0:01:57]} 17. Nb3 {[%clk 0:00:50]}  Bxd3 {[%clk 0:01:54]} 18. Qxd3 {[%clk 0:00:51]}  Nc4 {[%clk 0:01:54]} 19. Qe2 {[%clk 0:00:46]}  axb4 {[%clk 0:01:48]} 20. axb4 {[%clk 0:00:46]}  Bxb4 {[%clk 0:01:48]} 21. Rab1 {[%clk 0:00:21]}  Ra2 {[%clk 0:01:39]} 22. cxb4 {[%clk 0:00:08]}  Qxb4 {[%clk 0:01:38]} 23. Bc3 {[%clk 0:00:05]}  Qa3 {[%clk 0:01:31]} 24. Qf3 {[%clk 0:00:03]}  Rc2 {[%clk 0:01:06]} 25. h4 {[%clk 0:00:03]}  Rb8 {[%clk 0:01:05]} 26. Be1 {[%clk 0:00:02]}  Qa2 {[%clk 0:01:01]} 27. Nd2 {[%clk 0:00:02]}  Rxb1 {[%clk 0:00:58]} 28. Nxb1 {[%clk 0:00:03]}  Qxb1 {[%clk 0:00:58]} 29. h5 {[%clk 0:00:04]}  Rc1 {[%clk 0:00:57]} 30. h6 {[%clk 0:00:04]}  Rxe1 {[%clk 0:00:50]} 31. Rxe1 {[%clk 0:00:04]}  Qxe1+ {[%clk 0:00:49]} 32. Kh2 {[%clk 0:00:05]}  f5 {[%clk 0:00:41]} 33. Qb3 {[%clk 0:00:05]}  Qxf2 {[%clk 0:00:37]} 34. Qb8+ {[%clk 0:00:05]}  Kf7 {[%clk 0:00:38]} 35. Qc7+ {[%clk 0:00:05]}  Ke8 {[%clk 0:00:36]} 36. Qc8+ {[%clk 0:00:06]}  Ke7 {[%clk 0:00:36]} 37. Qc7+ {[%clk 0:00:06]}  Kf6 {[%clk 0:00:37]} 38. Qd8+ {[%clk 0:00:06]}  Kf7 {[%clk 0:00:37]} 39. Qd7+ {[%clk 0:00:07]}  Kf8 {[%clk 0:00:38]} 40. Qd8+ {[%clk 0:00:07]}  Kf7 {[%clk 0:00:38]} 41. Qd7+ {[%clk 0:00:08]}  Kf6 {[%clk 0:00:38]} 42. Qg7+ {[%clk 0:00:08]}  Kg5 {[%clk 0:00:38]} 43. Qxh7 {[%clk 0:00:05]}  Ne3 {[%clk 0:00:35]} 44. Qe7+ {[%clk 0:00:00]}  Kh5 {[%clk 0:00:35]} 0-1


[Site "https://www.chess.com"]

[Event "Titled Tuesday Blitz May 16 Early 2023"]
[White "Krysa, Leandro"]
[Black "Ladan, Nicholas"]
[WhiteFideId "116807"]
[BlackFideId "30918855"]
[WhiteElo "2489"]
[BlackElo "2167"]
[Result "1-0"]
[Round "03"]
[TimeControl "180+2"]
[Date "2023.05.16"]
[WhiteClock "0:00:07"]
[BlackClock "0:00:00"]

1. e4 {[%clk 0:03:00]}  e5 {[%clk 0:02:57]} 2. Nf3 {[%clk 0:03:00]}  Nc6 {[%clk 0:02:57]} 3. d4 {[%clk 0:03:01]}  exd4 {[%clk 0:02:57]} 4. Nxd4 {[%clk 0:03:02]}  Bc5 {[%clk 0:02:58]} 5. Nb3 {[%clk 0:03:00]}  Bb6 {[%clk 0:02:58]} 6. Nc3 {[%clk 0:02:59]}  Nge7 {[%clk 0:02:57]} 7. Bf4 {[%clk 0:02:55]}  O-O {[%clk 0:02:56]} 8. Qd2 {[%clk 0:02:55]}  f5 {[%clk 0:02:56]} 9. exf5 {[%clk 0:02:50]}  Nxf5 {[%clk 0:02:57]} 10. O-O-O {[%clk 0:02:48]}  d6 {[%clk 0:02:52]} 11. Bc4+ {[%clk 0:02:47]}  Kh8 {[%clk 0:02:52]} 12. Rhe1 {[%clk 0:02:47]}  Nfd4 {[%clk 0:02:43]} 13. Bg5 {[%clk 0:02:40]}  Qd7 {[%clk 0:02:37]} 14. Nxd4 {[%clk 0:02:35]}  Nxd4 {[%clk 0:02:37]} 15. Nd5 {[%clk 0:02:21]}  Qf5 {[%clk 0:02:07]} 16. Be7 {[%clk 0:02:07]}  Nc6 {[%clk 0:01:43]} 17. Bxf8 {[%clk 0:01:49]}  Qxf8 {[%clk 0:01:44]} 18. f4 {[%clk 0:01:20]}  Bg4 {[%clk 0:01:28]} 19. Be2 {[%clk 0:01:19]}  Bf5 {[%clk 0:01:28]} 20. Kb1 {[%clk 0:01:09]}  Ba5 {[%clk 0:01:14]} 21. Nc3 {[%clk 0:01:01]}  Nb4 {[%clk 0:01:03]} 22. Rc1 {[%clk 0:00:54]}  c6 {[%clk 0:01:00]} 23. g4 {[%clk 0:00:54]}  Bg6 {[%clk 0:00:56]} 24. f5 {[%clk 0:00:54]}  Bf7 {[%clk 0:00:56]} 25. Qf4 {[%clk 0:00:47]}  Nd5 {[%clk 0:00:50]} 26. Nxd5 {[%clk 0:00:44]}  Bxe1 {[%clk 0:00:50]} 27. Rxe1 {[%clk 0:00:38]}  Bxd5 {[%clk 0:00:50]} 28. b3 {[%clk 0:00:31]}  Re8 {[%clk 0:00:49]} 29. Qd2 {[%clk 0:00:25]}  Qe7 {[%clk 0:00:45]} 30. Kc1 {[%clk 0:00:25]}  Qf6 {[%clk 0:00:29]} 31. c3 {[%clk 0:00:20]}  Re5 {[%clk 0:00:24]} 32. Bd1 {[%clk 0:00:19]}  h6 {[%clk 0:00:22]} 33. Kb2 {[%clk 0:00:17]}  Be4 {[%clk 0:00:22]} 34. Qd4 {[%clk 0:00:15]}  c5 {[%clk 0:00:18]} 35. Qd2 {[%clk 0:00:14]}  Bc6 {[%clk 0:00:18]} 36. Bc2 {[%clk 0:00:12]}  Qe7 {[%clk 0:00:18]} 37. Rxe5 {[%clk 0:00:10]}  Qxe5 {[%clk 0:00:19]} 38. h4 {[%clk 0:00:10]}  d5 {[%clk 0:00:16]} 39. g5 {[%clk 0:00:10]}  hxg5 {[%clk 0:00:15]} 40. hxg5 {[%clk 0:00:10]}  d4 {[%clk 0:00:15]} 41. cxd4 {[%clk 0:00:08]}  cxd4 {[%clk 0:00:16]} 42. Bd3 {[%clk 0:00:08]}  Be4 {[%clk 0:00:15]} 43. Qe2 {[%clk 0:00:07]}  Qxf5 {[%clk 0:00:10]} 44. Qxe4 {[%clk 0:00:07]}  Qf2+ {[%clk 0:00:07]} 45. Ka3 {[%clk 0:00:07]}  Kg8 {[%clk 0:00:04]} 46. Qe8+ {[%clk 0:00:07]}  Qf8+ {[%clk 0:00:05]} 47. Qxf8+ {[%clk 0:00:05]}  Kxf8 {[%clk 0:00:06]} 48. Kb4 {[%clk 0:00:05]}  Ke7 {[%clk 0:00:06]} 49. Kc4 {[%clk 0:00:06]}  Kd6 {[%clk 0:00:07]} 50. g6 {[%clk 0:00:06]}  Ke5 {[%clk 0:00:07]} 51. b4 {[%clk 0:00:07]}  b6 {[%clk 0:00:04]} 52. b5 {[%clk 0:00:07]}  Kd6 {[%clk 0:00:01]} 53. Kxd4 {[%clk 0:00:06]}  Kc7 {[%clk 0:00:02]} 54. Ke5 {[%clk 0:00:06]}  Kd7 {[%clk 0:00:03]} 55. Kd5 {[%clk 0:00:06]}  Ke7 {[%clk 0:00:03]} 56. Kc6 {[%clk 0:00:07]}  Kd8 {[%clk 0:00:00]} 57. Kb7 {[%clk 0:00:07]} 1-0


[Site "https://www.chess.com"]

[Event "Titled Tuesday Blitz May 16 Early 2023"]
[White "Arabidze, Meri"]
[Black "Onufrienko, Vladislav"]
[WhiteFideId "13604040"]
[BlackFideId "13804332"]
[WhiteElo "2405"]
[BlackElo "1814"]
[Result "1-0"]
[Round "03"]
[TimeControl "180+2"]
[Date "2023.05.16"]
[WhiteClock "0:01:19"]
[BlackClock "0:00:37"]

1. d4 {[%clk 0:02:56]}  d5 {[%clk 0:02:59]} 2. c4 {[%clk 0:02:56]}  c6 {[%clk 0:02:57]} 3. Nf3 {[%clk 0:02:56]}  e6 {[%clk 0:02:52]} 4. Nbd2 {[%clk 0:02:56]}  f5 {[%clk 0:02:51]} 5. e3 {[%clk 0:02:55]}  Nf6 {[%clk 0:02:51]} 6. Ne5 {[%clk 0:02:55]}  Bd6 {[%clk 0:02:50]} 7. Bd3 {[%clk 0:02:54]}  O-O {[%clk 0:02:50]} 8. O-O {[%clk 0:02:54]}  c5 {[%clk 0:02:49]} 9. Ndf3 {[%clk 0:02:52]}  b6 {[%clk 0:02:45]} 10. b3 {[%clk 0:02:50]}  Bb7 {[%clk 0:02:45]} 11. Bb2 {[%clk 0:02:50]}  Qe7 {[%clk 0:02:43]} 12. Rc1 {[%clk 0:02:49]}  Ne4 {[%clk 0:02:42]} 13. Ne1 {[%clk 0:02:28]}  Nc6 {[%clk 0:02:39]} 14. f3 {[%clk 0:02:27]}  Nf6 {[%clk 0:02:38]} 15. Bb1 {[%clk 0:02:24]}  Rac8 {[%clk 0:02:32]} 16. N1d3 {[%clk 0:02:23]}  Rfd8 {[%clk 0:02:24]} 17. Qe2 {[%clk 0:02:22]}  Ba6 {[%clk 0:01:54]} 18. Rfd1 {[%clk 0:02:19]}  Bb7 {[%clk 0:01:44]} 19. Qf2 {[%clk 0:02:18]}  cxd4 {[%clk 0:01:38]} 20. exd4 {[%clk 0:02:19]}  Nb4 {[%clk 0:01:34]} 21. Nf4 {[%clk 0:02:11]}  dxc4 {[%clk 0:01:31]} 22. bxc4 {[%clk 0:02:12]}  Bxe5 {[%clk 0:01:27]} 23. dxe5 {[%clk 0:02:13]}  Ne8 {[%clk 0:01:20]} 24. h4 {[%clk 0:01:55]}  Rxd1+ {[%clk 0:01:16]} 25. Rxd1 {[%clk 0:01:56]}  Rxc4 {[%clk 0:01:15]} 26. Qg3 {[%clk 0:01:50]}  Nd5 {[%clk 0:01:11]} 27. Nxd5 {[%clk 0:01:48]}  Bxd5 {[%clk 0:01:12]} 28. Bxf5 {[%clk 0:01:37]}  Qc5+ {[%clk 0:01:05]} 29. Kh2 {[%clk 0:01:23]}  exf5 {[%clk 0:01:05]} 30. e6 {[%clk 0:01:22]}  Bxe6 {[%clk 0:00:43]} 31. Rd8 {[%clk 0:01:21]}  Kf8 {[%clk 0:00:37]} 32. Qxg7# {[%clk 0:01:19]} 1-0


[Site "https://www.chess.com"]